Cogmind - Beta 12 @@@ ROGUE MODE // 2024.01.26 @ 23:25:14 Player: ILikeVoltron Result: Self-destructed Performance ------------- Evolutions (1) 500 Regions Visited (4) 800 Robots Destroyed (28) 140 Value Destroyed (563) 563 Prototype IDs (4) 80 Alien Tech Used (0) 0 Bonus (395) 395 TOTAL SCORE: 2478 Bonus ------- Met Imprinter 300 Was Imprinted 300 Friendly Fire -205 Cogmind --------- Core Integrity 220/400 Matter 218/300 Energy 100/100 System Corruption 6% Temperature Cool (0) Movement Walking (260) Ox2 Location -7/Zion Parts ------- > --- POWER (1) -------- (None) > --- PROPULSION (3) --- Aluminum Leg Improved Titanium Leg > --- UTILITY (2) ------ Large Storage Unit Hacking Drone Bay (0/1) > --- WEAPON (3) ------- Heavy Beamcaster Heavy Battle Rifle > --- INVENTORY (15) --- Light Ion Engine Light Treads High-capacity Matter Pod (200) Structural Scanner ECM Suite Light Armor Plating Medium Armor Plating Tractor Beam Phasing AFG Heavy Battle Rifle Grenade Launcher Enhanced Flamer RU-N14's Throwing Claymores (10) RU-N14's Throwing Claymores (10) Phasing Sabre Peak State ------------ > --- POWER ------------ Improved Ion Engine > --- PROPULSION ------- Aluminum Leg Aluminum Leg Improved Titanium Leg > --- UTILITY ---------- Large Storage Unit Hacking Drone Bay > --- WEAPON ----------- Heavy Beamcaster Heavy Battle Rifle RU-N14's Throwing Claymores > --- INVENTORY -------- Light Ion Engine Light Treads High-capacity Matter Pod Structural Scanner ECM Suite Light Armor Plating Medium Armor Plating Tractor Beam Phasing AFG Light Assault Rifle Heavy Battle Rifle Grenade Launcher Enhanced Flamer Ripper Phasing Sabre [Rating: 39] Favorites ----------- Power Improved Ion Engine Engine Improved Ion Engine Propulsion Aluminum Leg Treads Light Treads Leg Aluminum Leg Utility Large Storage Unit Device Hacking Drone Bay Storage Large Storage Unit Protection Medium Armor Plating Weapon Light Assault Rifle Energy Gun Heavy Beamcaster Ballistic Gun Light Assault Rifle Special Weapon RU-N14's Throwing Claymores Slashing Weapon Ripper Build | -11 -10 -9 -9 -7 ------- Run | Jun Mat Mat Min Zio Slots Evolved 2 | . . 2 . . Power . | . . . . . Propulsion 1 | . . 1 . . Utility . | . . . . . Weapon 1 | . . 1 . . Parts Attached 35 | . 15 10 3 7 Power 2 | . 1 1 . . Engine 2 | . 1 1 . . Core . | . . . . . Reactor . | . . . . . Propulsion 10 | . 3 5 1 1 Treads 3 | . 2 1 . . Leg 7 | . 1 4 1 1 Wheel . | . . . . . Hover . | . . . . . Flight . | . . . . . Utility 9 | . 4 3 1 1 Device 4 | . 2 1 . 1 Storage 1 | . . 1 . . Processor . | . . . . . Hackware . | . . . . . Protection 4 | . 2 1 1 . Artifact . | . . . . . Weapon 14 | . 7 1 1 5 Energy Gun 2 | . . . 1 1 Energy Cannon . | . . . . . Ballistic Gun 10 | . 7 1 . 2 Ballistic Cannon . | . . . . . Launcher . | . . . . . Special Weapon 1 | . . . . 1 Impact Weapon . | . . . . . Slashing Weapon 1 | . . . . 1 Piercing Weapon . | . . . . . Special Melee Weapon . | . . . . . Unidentified Prototypes 2 | . . . . 2 Parts Lost 9 | . 3 1 2 3 Power 2 | . 1 . . 1 Propulsion 4 | . 1 1 1 1 Utility 1 | . 1 . . . Weapon 2 | . . . 1 1 Highest Loss Streak 3 | . 1 1 2 3 To Critical Strikes . | . . . . . Average Slot Usage (%) 98 | . 98 96 96 99 Engine 12 | . 14 11 11 10 Treads 5 | . 10 8 . . Leg 25 | . 17 23 29 32 Device 8 | . 9 . 3 10 Storage 12 | . 14 11 11 11 Protection 2 | . 2 10 7 . Energy Gun 7 | . 6 . 3 11 Ballistic Gun 20 | . 21 30 29 15 Special Weapon 2 | . . . . 4 Naked Turns . | . . . . . Heaviest Build 45 | 11 13 37 39 45 Greatest Support 40 | 20 40 40 33 40 Greatest Overweight (x) 1 | . . 1 1 1 Average Overweight (x) . | . . . . . Largest Inventory Capacity 15 | . 8 15 15 15 Average Capacity 12 | . 8 14 15 15 Most Carried 15 | . 8 15 15 15 Average Carried 11 | . 7 12 14 14 Final Capacity 15 | 8 8 15 15 15 Final Carried 15 | 6 8 15 13 15 Class Distribution -------------------- 38% | Mutant 21% | Gunner 11% | Tank 9% | Derelict-Gunner 9% | Scavenger-Gunner 7% | Derelict-Mutant Dominant Class ---------------- Mutant | -10/Materials Tank | -9/Materials Tank | -9/Mines Gunner | -7/Zion Resources | -11 -10 -9 -9 -7 ----------- Run | Jun Mat Mat Min Zio Matter Collected 940 | 175 432 305 13 15 Remotely 234 | . 234 . . . Salvage Created 960 | . 340 588 32 . Parts 66 | . 27 39 . . Haulers Intercepted 1 | . . 1 . . Recyclers Shooed 4 | . 1 3 . . Parts Field Recycled . | . . . . . Retrieved Matter . | . . . . . Parts Self-Destructed 2 | . . . . 2 Prevented . | . . . . . Kills | -11 -10 -9 -9 -7 ------- Run | Jun Mat Mat Min Zio Combat Hostiles Destroyed 23 | . 14 7 2 . Guns 23 | . 14 7 2 . Classes Destroyed 9 | . 2 6 1 . Worker 1 | . . 1 . . Builder 2 | . . 2 . . Hauler 1 | . . 1 . . Recycler 2 | . . 2 . . Watcher 1 | . . 1 . . Swarmer 9 | . 9 . . . Grunt 11 | . 5 6 . . Sentry 1 | . . 1 . . Assembled 2 | . . . 2 . Best Kill Streak 5 | . 4 5 2 . Combat Bots Only 4 | . 4 3 2 . Max Kills in Single Turn 1 | . 1 1 1 . Gunslinging . | . . . . . Exploded . | . . . . . Melee . | . . . . . Uniques/NPCs Destroyed . | . . . . . Combat | -11 -10 -9 -9 -7 -------- Run | Jun Mat Mat Min Zio Damage Taken 2067 | . 820 399 331 517 Core 403 | . 223 40 26 114 Absorbed by Shields . | . . . . . Regen/Repaired (Parts) 31 | . . . . 31 Core Remaining (%) 55 | 100 10 . . . Volleys Fired 127 | . 66 50 7 4 Largest 3 | . 2 3 3 2 Hottest 114 | . 90 60 105 114 Shots Fired 311 | . 132 150 21 8 Gun 311 | . 132 150 21 8 Cannon . | . . . . . Launcher . | . . . . . Special . | . . . . . Kinetic 282 | . 110 150 18 4 Thermal 29 | . 22 . 3 4 Explosive . | . . . . . Electromagnetic . | . . . . . Robot Hit Streak 9 | . 5 9 7 2 Robot Miss Streak 6 | . 4 6 2 3 Penetration Max . | . . . . . Secondary Targets 5 | . 4 1 . . Max Gunslinging Chain 1 | . 1 1 . . Shots Hit Robots 167 | . 67 79 15 6 Core Hits 73 | . 25 35 10 3 Critical Kills . | . . . . . Critical Parts Destroyed 1 | . 1 . . . Critical Strikes 5 | . 3 . . 2 Burn 2 | . 2 . . . Destroy 1 | . 1 . . . Sever 2 | . . . . 2 Melee Attacks 13 | . . . . 13 Impact . | . . . . . Slashing 13 | . . . . 13 Piercing . | . . . . . Sneak Attacks 3 | . . . . 3 Combat Hostiles . | . . . . . Follow-up Attacks . | . . . . . Damage Inflicted 1740 | . 657 656 147 280 Guns 1525 | . 657 656 147 65 Cannons . | . . . . . Explosions . | . . . . . Melee 205 | . . . . 205 Ramming 10 | . . . . 10 Kinetic 1314 | . 511 656 105 42 Thermal 211 | . 146 . 42 23 Explosive . | . . . . . Electromagnetic . | . . . . . Impact . | . . . . . Slashing 205 | . . . . 205 Piercing . | . . . . . Highest Corruption 6 | . . . . 6 Average Corruption 2 | . . . . 2 Corruption Purged . | . . . . . Corruption Blocked . | . . . . . Overload Shots . | . . . . . Overflow Damage . | . . . . . Projectiles . | . . . . . Explosions . | . . . . . Melee . | . . . . . Knockbacks . | . . . . . Impact . | . . . . . Kinetic . | . . . . . Secondary . | . . . . . Self-Inflicted Damage 10 | . . . . 10 Shots . | . . . . . Rammed . | . . . . . Targets Rammed . | . . . . . Kicked . | . . . . . Crushed . | . . . . . Highest Temperature 186 | . 186 148 153 154 Average Temperature 52 | . 45 50 63 78 Received Heat Transfer 565 | . 180 198 100 87 Siege Activations . | . . . . . Robots Corrupted . | . . . . . Combat Hostiles . | . . . . . Parts Fried . | . . . . . Impact Corruptions . | . . . . . Robots Melted . | . . . . . Combat Hostiles . | . . . . . Parts Melted . | . . . . . Heat Transferred 680 | . 532 . 111 37 Parts Sabotaged . | . . . . . Parts Stolen . | . . . . . Parts Stripped . | . . . . . Power Chain Reactions . | . . . . . Missiles Intercepted . | . . . . . Alert | -11 -10 -9 -9 -7 ------- Run | Jun Mat Mat Min Zio Peak Influence 328 | . 295 328 127 . Initial 127 | . . 67 127 . Average 172 | . 176 168 116 . Maximum Alert Level 1 | . 1 1 . . Low Security (%) 59 | . 60 56 100 . Level 1 40 | . 39 43 . . Level 2 . | . . . . . Level 3 . | . . . . . Level 4 . | . . . . . Level 5 . | . . . . . High Security . | . . . . . Max Security . | . . . . . Squads Dispatched 4 | . 2 2 . . Investigation 1 | . . 1 . . Extermination . | . . . . . Reinforcement 3 | . 2 1 . . Assault . | . . . . . Garrison . | . . . . . Intercept . | . . . . . Searches Triggered . | . . . . . Construction Impeded . | . . . . . Haulers Reinforced . | . . . . . Active Scanning Responses . | . . . . . Cargo Convoy Interrupts . | . . . . . Stealth | -11 -10 -9 -9 -7 --------- Run | Jun Mat Mat Min Zio Distress Signals 2 | . 1 1 . . Communications Jammed . | . . . . . Distress Signals . | . . . . . Times Spotted 64 | . 31 11 10 12 Peak Tracking Total 20 | . 5 4 20 10 Tactical Retreats 7 | . 5 1 1 . Traps | -11 -10 -9 -9 -7 ------- Run | Jun Mat Mat Min Zio Traps Triggered 2 | . 2 . . . Indirectly . | . . . . . Trap Hack Attempts . | . . . . . Triggered . | . . . . . Disarmed 4 | . . 4 . . Reprogrammed . | . . . . . Reused . | . . . . . Traps Extracted . | . . . . . Installed . | . . . . . Triggered . | . . . . . Machines | -11 -10 -9 -9 -7 ---------- Run | Jun Mat Mat Min Zio Machines Disabled 1 | . . . . 1 Max in Single Turn 1 | . . . . 1 Machines Repaired . | . . . . . Machines Sabotaged . | . . . . . Overloaded Fab Kills . | . . . . . Hacking | -11 -10 -9 -9 -7 --------- Run | Jun Mat Mat Min Zio Machines Accessed 4 | . 1 3 . . Terminals 4 | . 1 3 . . Fabricators . | . . . . . Repair Stations . | . . . . . Recycling Units . | . . . . . Scanalyzers . | . . . . . Garrison Access . | . . . . . Total Hacks 8 | . 2 6 . . Successful 5 | . 1 4 . . Failed 3 | . 1 2 . . Catastrophic 1 | . . 1 . . Database Lockouts . | . . . . . Manual . | . . . . . Terminals 8 | . 2 6 . . Fabricators . | . . . . . Repair Stations . | . . . . . Recycling Units . | . . . . . Scanalyzers . | . . . . . Garrison Access . | . . . . . Terminal Hacks 5 | . 1 4 . . Record 1 | . 1 . . . Prototype ID Bank 1 | . . 1 . . Branch Access Points 1 | . . 1 . . Locate Traps 1 | . . 1 . . Disarm Traps 1 | . . 1 . . Fabricator Hacks . | . . . . . Repair Station Hacks . | . . . . . Recycling Unit Hacks . | . . . . . Scanalyzer . | . . . . . Garrison Access Hacks . | . . . . . Unauthorized Hacks . | . . . . . Terminals . | . . . . . Fabricators . | . . . . . Repair Stations . | . . . . . Recycling Units . | . . . . . Scanalyzers . | . . . . . Garrison Access . | . . . . . Data Cores Recovered . | . . . . . Used . | . . . . . Hacking Detections 3 | . 1 2 . . Full Trace Events 1 | . . 1 . . Feedback Events . | . . . . . Feedback Blocked . | . . . . . Robot Schematics Acquired . | . . . . . Robots Built . | . . . . . Authchips . | . . . . . Time . | . . . . . Total Robot Build Rating . | . . . . . Part Schematics Acquired . | . . . . . Parts Built . | . . . . . Authchips . | . . . . . Time . | . . . . . Total Part Build Rating . | . . . . . Parts Repaired . | . . . . . Time . | . . . . . Parts Recycled . | . . . . . Recycled Matter . | . . . . . Retrieved Matter . | . . . . . Retrieved Components . | . . . . . Parts Scanalyzed . | . . . . . Part Schematics Acquired . | . . . . . Parts Damaged . | . . . . . Bothacking | -11 -10 -9 -9 -7 ------------ Run | Jun Mat Mat Min Zio Used RIF Installer . | . . . . . Robots Hacked . | . . . . . Non-combat . | . . . . . Combat . | . . . . . Robot Hacks Applied . | . . . . . Relay Couplers Released . | . . . . . Fabnet Peak Effective % . | . . . . . Robots Rewired . | . . . . . Allies Hacked . | . . . . . Hacks Repelled . | . . . . . Allies | -11 -10 -9 -9 -7 -------- Run | Jun Mat Mat Min Zio Total Allies 4 | . . . . 4 Largest Group 4 | . . . . 4 Highest-Rated Group 155 | . . . . 155 Highest-Rated Ally 41 | . . . . 41 Total Orders 1 | . . . . 1 EXPLORE 1 | . . . . 1 Ally Attacks . | . . . . . Total Damage . | . . . . . Kills . | . . . . . Allies Corrupted . | . . . . . Allies Melted . | . . . . . Intel | -11 -10 -9 -9 -7 ------- Run | Jun Mat Mat Min Zio Robot Analysis Total . | . . . . . Derelict Logs Recovered 1 | . . . . 1 Drone Launches 1 | . . . . 1 Drone Recoveries . | . . . . . Exploration | -11 -10 -9 -9 -7 ------------- Run | Jun Mat Mat Min Zio Turns Passed 2506 | . 871 383 31 1221 Spaces Moved 1276 | 1 491 133 6 645 Core . | . . . . . Treads 195 | . 164 31 . . Legs 1081 | 1 327 102 6 645 Wheels . | . . . . . Hover . | . . . . . Flight . | . . . . . Fastest Speed 120 | 120 120 120 120 123 Average Speed 158 | 120 133 172 166 175 Slowest Speed 193 | 120 160 190 190 193 Overloaded Moves . | . . . . . Propulsion Burnouts . | . . . . . Robots Hopped . | . . . . . Cave-ins Triggered . | . . . . . Exploration Rate (%) 38 | 2 79 21 2 90 Regions Visited 4 Branch Regions 2 Pre-discovered Areas . | . . . . . Known Exits Taken 1 | . . 1 . . Unknown Exits Taken 3 | 1 1 . 1 . Scrap Searched 1 | . . . . 1 Spaces Dug . | . . . . . Terrain Destroyed . | . . . . . Melee . | . . . . . Projectile . | . . . . . AOE . | . . . . . Terrain Rammed 2 | . . . . 2 Walls Destroyed . | . . . . . Machines Disabled . | . . . . . Actions | -11 -10 -9 -9 -7 --------- Run | Jun Mat Mat Min Zio Total 1525 | . 598 202 15 710 Wait 28 | . 7 . . 21 Move 1272 | . 490 132 5 645 Hop . | . . . . . Pick Up 21 | . 6 8 . 7 Fast Attach 9 | . 7 1 . 1 Attach 6 | . 2 2 2 . Detach 3 | . 2 . . 1 Swap 20 | . 6 7 1 6 Drop 24 | . 12 2 . 10 Fire 127 | . 66 50 7 4 Melee 13 | . . . . 13 Ram 2 | . . . . 2 Kick . | . . . . . Crush . | . . . . . Escape Stasis . | . . . . . Rewire . | . . . . . Trap . | . . . . . Miscellaneous . | . . . . . Route ------- -11/Junkyard -10/Materials (discovered 3 exits: *Mat x2 / [*Min]) -9/Materials (discovered 2 exits: *Min x2) -9/Mines -7/Zion (discovered 1 exit: [*Pro]) History --------- Turn | Location | Event 1 | -11/Junkyard | Discovered new exit (range 0) 1 | -11/Junkyard | Entered Materials 158 | -10/Materials | Discovered new exit (range 16) 265 | -10/Materials | Discovered new exit (range 12) 302 | -10/Materials | Build established: Mutant 425 | -10/Materials | Core integrity fell below 50% 539 | -10/Materials | Core integrity fell below 20% 829 | -10/Materials | Discovered new exit (range 12) 872 | -10/Materials | Entered another Materials area 872 | -9/Materials | Evolved 2 slots: Propulsion x1, Weapon x1 1046 | -9/Materials | Identified exit to Mines 1255 | -9/Materials | Entered Mines 1256 | -9/Mines | Assembled infested the area 1256 | -9/Mines | A Derelict revealed a hidden shortcut to a safe place 1286 | -9/Mines | Entered Zion 1307 | -7/Zion | Given the Hacking Drone Bay 1316 | -7/Zion | Found Prototype Device 1316 | -7/Zion | Identified Hacking Drone Bay 1349 | -7/Zion | Found Prototype Device 1389 | -7/Zion | Discovered new exit (range 25) 1528 | -7/Zion | Learned Factory trap positions 1838 | -7/Zion | Found Prototype Special Weapon 1839 | -7/Zion | Identified RU-N14's Throwing Claymores 1843 | -7/Zion | Found RU-N14's Throwing Claymores 2131 | -7/Zion | Build established: Gunner 2293 | -7/Zion | Imprinted 2295 | -7/Zion | Declared Zion's savior 2454 | -7/Zion | Attacked by Zionites 2507 | -7/Zion | Self-destructed Last Messages --------------- 02486_ Knocked back. AG-6DA(z) bursts out of the Twisted Machinery. 02488_ AG-6DA(z) pulls a Mak. Axe out of the Twisted Machinery. 02488_ C6-8NP(z) destroyed. 02491_ Knocked back. LN-5XB(z) bursts out of the Twisted Machinery. 02492_ Imp. Ion Engine destroyed. 02494_ Aluminum Leg destroyed. 02494_ LN-5XB(z) pulls a Mak. Axe out of the Twisted Machinery. 02502_ Kicked Deep Containment System. 02502_ Imp. Titanium Leg broken. 02502_ Destabilizing: Short circuit. 02502_ Destabilizing: System corrupted (+2). 02505_ Kicked Deep Containment System. 02505_ Destabilizing: System corrupted (+2). 02505_ Destabilizing: System interference. 02505_ Hvy. Battle Rifle temporarily disabled. 02505_ Hvy. Beamcaster temporarily disabled. 02505_ Hacking Drone Bay temporarily disabled. 02505_ AG-6DA(z) destroyed. Map ----- +----------------------------------------------------+ | ????????????????????????????????????????????????? | | ????????????????????????????????????????????????? | | ????????????????????????????????????????????????? | | ????????????????????????????????????????????????? | | ????????????????????????????????????????????????? | | ????????????????????????????????????????????????? | | ????????????????????????????????????????????????? | | ????????????????????????????????????????????????? | | ????????????????????????????????????????????????? | | ????????????????????????????????????????????????? | | ????????????????????????????????????????????????? | | ????????????????????????????????????????????????? | | ????????????????????????????????????????????????? | | ????????????????????????????????????????????????? | | ?????????????????????????????????????#"""###????? | | ?????????????????????????????????????#|| ""##???? | | ?????????????????????????????????????# [= ""#???? | | ?????????????????????????????????????#""" ""#???? | | ???????????????????????????????????##### "####?? | | ????????????????????????????########"# ####"#?? | | ??????????????????????#?????#"#""""""# "##?? | | ??????????????????????"######""""""""""" "#?? | | ??????????????????????#""#"#"" " " """"" ##?? | | ??????????????????????#"""#""" " #?? | | ??????????????????????" X"###" %* #?? | | ??????????????????????# @z"#" ###? | | ?????????????????????##*zzz"" "" ## | | ?????????????????????" / M """ " | | ?????????????????????" M % """" ## | | ?????????????????????# """""""""" | | ???????????????????#""""""""#""#""" "" """ | | ???????????????????##""""#"#"####"" """"""" " | | ????????????????????#"########??#" = """""" " | | ????????????????????##??????????#" %" " | | ????????????????????????????????#" !""""""" " | | ???????????????????????????????##" """"" "" " | | ??????????????????????????????##"" """"" """" " | | ??????????????????????????????#""" """" """ | | ??????????????????????????????##"" """ """ | | ???????????????????????????????#"" = """ | | ???????????????????????????????#"" "#" | | ???????????????????????????????##"" "" """ | | ??????????????????????????????#?#"#""" """ | | ?????????????????????????????#""###"" | | ??????????????????????????##""""""""" | | ??????????????????????????#"" """"" | | ??????????????????????????#"" "" | | ??????????????????????????#""" "" " | | ??????????????????????????###"""" % "" " | | ???????????????????????????#""##"" "" " | +----------------------------------------------------+ Best States ------------- Heat Dissipation 28 Energy Generation 12 Energy Capacity 265 Matter Stores 300 Matter Capacity 300 Sight Range 16 Terrain Scan Density 10 ECM Strength 1 Armor Coverage 225 Weapon Shielding 33 Evasion (%) 55 Recoil Reduction 2 Item Schematics ----------------- None Robot Schematics ------------------ None Fabricated ------------ Nothing Alien Tech Used ----------------- None Achievements -------------- None Challenges ------------ None Game ------ Seed MobileSupercompositeAutogun Manual? 0 Play Time 00:25:25 Cumulative 100.6 hours Start 2024.01.26 @ 21:59:20 End 2024.01.26 @ 23:25:14 Sessions 1 Manual Loads 0 Difficulty Rogue Special Mode None Game No. 158 Rogue 154 Adventurer 0 Explorer 4 Win Type - Total 0 Types 0/0/0/0/0/0/0/0/0 Lore% 26 Gallery% 42 Achievement% 33 Wizard Run 0 Options --------- ASCII 0 Keyboard 1 Movement Arrows Keybinds 0 Fullscreen 2 Font 24/Smallcaps Map View 113x50 Tactical HUD 1 Map Filters NONE Filters NONE Steam 1 RUN: 12f369b0-3454-44d1-9f84-fa26d9fb9de1